bitfinex/quotes_BTCUSD_20250412
["timestamp","ask_amount","ask_price","bid_price","bid_amount"]
[1744497690281,0.00104662,85439.0,85438.0,0.87522271]
[1744497690508,0.00104662,85439.0,85438.0,0.84263851]
[1744497692089,0.00104662,85439.0,85438.0,0.97859851]
[1744497693361,0.00104662,85439.0,85438.0,0.97859583]
[1744497700937,6.2e-07,85439.0,85438.0,0.99413668]
[1744497701622,0.0008466,85456.0,85455.0,0.574041]
[1744497701819,0.0008466,85456.0,85455.0,0.71669713]
[1744497702840,0.0008466,85456.0,85455.0,0.36381459]
[1744497703045,0.0008466,85456.0,85455.0,0.60185559]
[1744497703678,0.00089327,85456.0,85455.0,0.60185559]
[1744497721370,0.00089327,85456.0,85455.0,0.85092459]
[1744497735213,0.00089327,85456.0,85455.0,0.85457937]
[1744497739320,0.00089327,85456.0,85455.0,0.85457952]
[1744497741789,0.00089327,85456.0,85455.0,0.85092459]
[1744497742817,0.00089327,85456.0,85455.0,0.63458305]
[1744497752225,0.00089327,85456.0,85455.0,0.06054205]
[1744497752362,0.00089327,85456.0,85455.0,0.02781459]
[1744497753412,0.00089327,85456.0,85455.0,0.01696596]
[1744497754796,0.04749327,85456.0,85455.0,0.01696596]
[1744497754991,0.09629327,85456.0,85455.0,0.01696596]
[1744497755738,0.09629327,85456.0,85455.0,0.0133104]
[1744497755898,0.00089327,85456.0,85455.0,0.006]
[1744497756284,0.00089327,85456.0,85455.0,0.0133104]
[1744497757516,0.00089327,85456.0,85455.0,0.0169662]
[1744497757717,0.00089327,85456.0,85455.0,0.0096558]
[1744497758793,0.00089327,85456.0,85455.0,0.006]
[1744497775738,0.05069327,85456.0,85455.0,0.006]
[1744497781982,0.22043481,85456.0,85455.0,0.006]
[1744497782155,0.22043481,85456.0,85428.0,0.0465]
[1744497782156,0.011705,85431.0,85428.0,0.0465]
[1744497782375,0.234109,85430.0,85429.0,0.01096922]
[1744497783541,0.234109,85430.0,85429.0,0.01101584]
[1744497783881,0.234109,85430.0,85429.0,0.01301584]
[1744497784259,0.234109,85430.0,85429.0,0.02767548]
[1744497784425,0.234109,85430.0,85429.0,0.01301584]
[1744497784627,0.234109,85430.0,85429.0,0.02767856]
[1744497785641,0.234109,85430.0,85429.0,0.01301584]
[1744497786015,0.234109,85430.0,85429.0,0.02767856]
[1744497786174,0.234109,85430.0,85429.0,0.01301584]
[1744497786370,0.234109,85430.0,85429.0,0.02766933]
[1744497787189,0.234109,85430.0,85429.0,0.01301584]
[1744497787754,0.234109,85430.0,85429.0,0.00570319]
[1744497788444,0.234109,85430.0,85429.0,0.00204662]
[1744497790630,0.35495054,85430.0,85429.0,0.00204662]
[1744497791983,0.234109,85430.0,85429.0,0.00204662]
[1744497792127,0.234109,85430.0,85429.0,0.00104662]
[1744497792481,0.235109,85430.0,85429.0,4.662e-05]
[1744497792883,0.237109,85430.0,85429.0,4.662e-05]
[1744497796824,0.237109,85430.0,85429.0,0.01481087]
[1744497797120,0.237109,85430.0,85429.0,4.662e-05]
[1744497797314,0.003,85430.0,85429.0,0.06091395]
[1744497797516,0.003,85430.0,85429.0,0.05346053]
[1744497797717,0.003,85430.0,85429.0,0.07184444]
[1744497798060,0.002,85430.0,85429.0,0.07184444]
[1744497798701,0.011705,85432.0,85429.0,0.07184444]
[1744497799079,0.011705,85432.0,85429.0,0.06453053]
[1744497799274,0.001,85430.0,85429.0,0.06453053]
[1744497799486,0.011704,85434.0,85430.0,0.011705]
[1744497799709,0.001,85432.0,85431.0,0.01472689]
[1744497800087,0.001,85432.0,85431.0,0.0220408]
[1744497800283,0.001,85432.0,85431.0,0.02569737]
[1744497800514,0.234101,85433.0,85431.0,0.02569737]
[1744497801582,0.234101,85433.0,85432.0,0.00731391]
[1744497801870,0.234101,85433.0,85432.0,0.02571275]
[1744497802629,0.236101,85433.0,85432.0,0.02571275]
[1744497803030,0.238101,85433.0,85432.0,0.02571275]
[1744497804288,0.239101,85433.0,85432.0,0.02571275]
[1744497810610,0.239101,85433.0,85432.0,0.01097048]
[1744497817000,0.239101,85433.0,85432.0,0.02570249]
[1744497819734,0.005,85433.0,85432.0,0.02570249]
[1744497833441,0.239101,85433.0,85432.0,0.02570249]
[1744497833794,0.239101,85433.0,85432.0,0.01097048]
[1744497834900,0.239101,85433.0,85432.0,0.02571612]
[1744497835997,0.239101,85433.0,85432.0,0.01097048]
[1744497840592,0.239101,85433.0,85432.0,0.02571919]
[1744497842292,0.239101,85433.0,85432.0,0.01097048]
[1744497842631,0.239101,85433.0,85432.0,0.00365657]
[1744497844194,0.239101,85433.0,85432.0,0.01840086]
[1744497844393,0.005,85433.0,85432.0,0.25250486]
[1744497844617,0.005,85433.0,85432.0,0.30871788]
[1744497844793,0.005,85433.0,85432.0,0.3415817]
[1744497845340,0.004,85433.0,85432.0,0.3415817]
[1744497845641,0.011704,85440.0,85437.0,0.245794]
[1744497846145,0.011704,85440.0,85438.0,0.01473507]
[1744497846557,0.011704,85440.0,85439.0,0.01096959]
[1744497846760,0.011704,85440.0,85439.0,0.02570773]
[1744497847418,0.245761,85449.0,85441.0,0.011703]
[1744497847662,0.011703,85444.0,85442.0,0.0147566]
[1744497847856,0.245776,85444.0,85442.0,0.02206962]
[1744497848064,0.245776,85444.0,85443.0,0.00365657]
[1744497848396,0.245776,85444.0,85443.0,0.01096959]
[1744497849110,0.250776,85444.0,85443.0,0.01096959]
[1744497849678,0.252776,85444.0,85443.0,0.01096959]
[1744497850280,0.250776,85444.0,85443.0,0.01096959]
[1744497851505,0.252776,85444.0,85443.0,0.01096959]
[1744497855986,0.252776,85444.0,85443.0,0.02570935]
[1744497857627,0.252776,85444.0,85443.0,0.01096959]
[1744497858396,0.252776,85444.0,85443.0,0.02570935]
[1744497859483,0.252776,85444.0,85443.0,0.01096959]
[1744497869923,0.007,85444.0,85443.0,0.05616959]
[1744497870083,0.007,85444.0,85443.0,0.33864359]
[1744497870297,0.007,85444.0,85443.0,0.35332593]
[1744497870500,0.007,85444.0,85443.0,0.11925193]
[1744497870671,0.005,85444.0,85443.0,0.11925193]
[1744497870873,0.011703,85446.0,85443.0,0.11925193]
[1744497871096,0.002,85444.0,85443.0,0.13095493]
[1744497871293,0.006,85444.0,85443.0,0.12364191]
[1744497872128,0.006,85444.0,85443.0,0.1309539]
[1744497872689,0.004,85444.0,85443.0,0.1309539]
[1744497873840,0.006,85444.0,85443.0,0.1309539]
[1744497875352,0.006,85444.0,85443.0,0.1192509]
[1744497875353,0.240071,85444.0,85443.0,0.1192509]
[1744497875551,0.240071,85444.0,85443.0,0.0256509]
[1744497876096,0.240071,85444.0,85443.0,0.01096856]
[1744497885058,0.240071,85444.0,85443.0,0.0256603]
[1744497885599,0.240071,85444.0,85443.0,0.00365657]
[1744497885795,0.240071,85444.0,85443.0,0.01835446]
[1744497888109,0.240071,85444.0,85443.0,0.00365657]
[1744497889043,0.006,85444.0,85443.0,0.01835139]
[1744497889926,0.006,85444.0,85443.0,0.02566312]
[1744497899583,0.006,85444.0,85443.0,0.01835139]
[1744497900403,0.240071,85444.0,85443.0,0.01835139]
[1744497900806,0.240071,85444.0,85443.0,0.00365657]
[1744497901355,0.36091254,85444.0,85443.0,0.00365657]
[1744497901554,0.40881254,85444.0,85443.0,0.00365657]
[1744497901959,0.234109,85430.0,85429.0,4.662e-05]
[1744497903728,0.35495054,85430.0,85429.0,4.662e-05]
[1744497903927,0.46758669,85430.0,85429.0,4.662e-05]
[1744497904120,0.35495054,85430.0,85429.0,4.662e-05]
[1744497904747,0.79387805,85430.0,85429.0,4.662e-05]
[1744497904924,0.80567795,85430.0,85429.0,4.662e-05]
[1744497905308,0.80667795,85430.0,85429.0,4.662e-05]
[1744497905725,0.80567795,85430.0,85429.0,4.662e-05]
[1744497906130,0.80767795,85430.0,85429.0,6.2e-07]
[1744497906330,0.80567795,85430.0,85429.0,6.2e-07]
[1744497906506,0.80867795,85430.0,85429.0,6.2e-07]
[1744497907097,0.9137242,85430.0,85429.0,6.2e-07]
[1744497907305,0.80867795,85430.0,85429.0,6.2e-07]
[1744497907653,1.14867795,85430.0,85429.0,6.2e-07]
[1744497907993,1.14367795,85430.0,85429.0,6.2e-07]
[1744497908207,1.14967795,85430.0,85429.0,6.2e-07]
[1744497908903,1.14667795,85430.0,85429.0,6.2e-07]
[1744497909286,1.15167795,85430.0,85429.0,6.2e-07]
[1744497909498,1.14867795,85430.0,85429.0,6.2e-07]
[1744497909869,1.15667795,85430.0,85429.0,0.00100062]
[1744497915798,1.1421371,85430.0,85429.0,0.00100062]
[1744497918628,0.8021371,85430.0,85429.0,0.00100062]
[1744497918753,0.66949566,85430.0,85429.0,0.00100062]
[1744497918961,0.660609,85430.0,85429.0,0.04790062]
[1744497919343,0.013,85430.0,85429.0,0.04790062]
[1744497919540,0.013,85430.0,85429.0,0.32991262]
[1744497919758,0.013,85430.0,85429.0,0.3447602]
[1744497920418,0.008,85430.0,85429.0,0.3447602]
[1744497920592,0.01,85430.0,85429.0,0.3447602]
[1744497921114,0.008,85430.0,85429.0,0.3447602]
[1744497922153,0.011704,85439.0,85435.0,0.245797]
[1744497922512,0.011704,85439.0,85436.0,0.01482011]
[1744497923595,0.011703,85441.0,85437.0,0.23409]
[1744497923936,0.011704,85440.0,85438.0,0.01482627]
[1744497924387,0.011704,85439.0,85435.0,0.245797]
[1744497925309,0.011704,85438.0,85435.0,0.234093]
[1744497925462,0.011704,85438.0,85433.0,0.234099]
[1744497925888,0.011704,85437.0,85433.0,0.245804]
[1744497926635,0.011704,85438.0,85433.0,0.245804]
[1744497927213,0.011704,85438.0,85433.0,0.246804]
[1744497927427,0.011704,85440.0,85435.0,0.234095]
[1744497927718,0.234069,85445.0,85440.0,0.23408]
[1744497927879,0.011703,85442.0,85437.0,0.23409]
[1744497928079,0.011703,85442.0,85437.0,0.245794]
[1744497928300,0.011703,85442.0,85438.0,0.234085]
[1744497928503,0.245783,85441.0,85437.0,0.23409]
[1744497929315,0.011703,85441.0,85437.0,0.23409]
[1744497929915,0.011703,85444.0,85438.0,0.280185]
[1744497930118,0.011703,85442.0,85438.0,0.280185]
[1744497930316,0.011703,85441.0,85438.0,0.0461]
[1744497930940,0.011704,85435.0,85433.0,0.0461]
[1744497931157,0.011703,85441.0,85435.0,0.011704]
[1744497931535,0.011704,85439.0,85435.0,0.245798]
[1744497931925,0.011704,85440.0,85436.0,0.234091]
[1744497932150,0.011704,85439.0,85435.0,0.245798]
[1744497932731,0.011704,85439.0,85435.0,0.234094]
[1744497933307,0.011704,85438.0,85435.0,0.234094]
[1744497933467,0.011704,85438.0,85433.0,0.0461]
[1744497933468,0.011704,85437.0,85433.0,0.0461]
[1744497933671,0.011704,85437.0,85433.0,0.280199]
[1744497934439,0.011704,85437.0,85433.0,0.291904]
[1744497934840,0.011704,85438.0,85434.0,0.234097]
[1744497935155,0.011704,85438.0,85434.0,0.245801]
[1744497936074,0.011704,85436.0,85433.0,0.0461]
[1744497936273,0.245793,85438.0,85435.0,0.01473526]
[1744497936456,0.245793,85438.0,85434.0,0.24982096]
[1744497936652,0.245793,85438.0,85436.0,0.01473219]
[1744497936897,0.011704,85437.0,85434.0,0.235098]
[1744497938722,0.011704,85437.0,85434.0,0.234098]
[1744497939022,0.011704,85437.0,85434.0,0.235098]
[1744497939728,0.245796,85437.0,85434.0,0.001]
[1744497939929,0.234095,85436.0,85434.0,0.001]
[1744497941646,0.234095,85436.0,85429.0,0.04790062]
[1744497941647,0.011705,85432.0,85429.0,0.04790062]
[1744497942754,0.234107,85431.0,85429.0,0.04790062]
[1744497942903,0.011705,85432.0,85429.0,0.04790062]
[1744497946591,0.011705,85432.0,85429.0,0.28201262]
[1744497946791,0.011705,85433.0,85429.0,0.29371762]
[1744497951205,0.011705,85433.0,85430.0,0.01473233]
[1744497951713,0.011704,85434.0,85430.0,0.24884033]
[1744497954415,0.245806,85433.0,85430.0,0.01473233]
[1744497957775,0.011705,85433.0,85430.0,0.24884033]
[1744497958752,0.011704,85434.0,85430.0,0.26054533]
[1744497960625,0.011703,85441.0,85436.0,0.011704]
[1744497960861,0.15606508,85446.0,85440.0,0.011704]
[1744497961160,0.011703,85445.0,85441.0,0.234077]
[1744497961404,0.011703,85442.0,85438.0,0.234085]
[1744497961832,0.011704,85440.0,85437.0,0.0496]
[1744497962597,0.011703,85441.0,85437.0,0.283688]
[1744497963643,0.011704,85440.0,85437.0,0.283688]
[1744497963997,0.011703,85441.0,85437.0,0.283688]
[1744497964219,0.245782,85441.0,85437.0,0.0496]
[1744497964436,0.011703,85441.0,85437.0,0.0496]
[1744497964668,0.011703,85441.0,85437.0,0.283688]
[1744497966218,0.011703,85441.0,85438.0,0.01472133]
[1744497968646,0.245785,85441.0,85438.0,0.01472133]
[1744497970527,0.245781,85442.0,85438.0,0.01472133]
[1744497970701,0.234085,85439.0,85438.0,0.01472133]
[1744497974894,0.234085,85439.0,85429.0,6.2e-07]
[1744497974895,0.234108,85431.0,85429.0,6.2e-07]
[1744497975105,0.234108,85431.0,85430.0,0.01469868]
[1744497977545,0.234108,85431.0,85429.0,6.2e-07]
[1744497980168,0.12084154,85430.0,85429.0,6.2e-07]
[1744497980367,0.25616154,85430.0,85429.0,6.2e-07]
[1744497980566,0.34081739,85430.0,85429.0,6.2e-07]
[1744497981214,0.81605824,85430.0,85429.0,6.2e-07]
[1744497981552,0.73140239,85430.0,85429.0,6.2e-07]
[1744497982062,0.73840239,85430.0,85429.0,6.2e-07]
[1744497982264,0.74340239,85430.0,85429.0,6.2e-07]
[1744497982861,1.07840239,85430.0,85429.0,6.2e-07]
[1744497983066,1.07640239,85430.0,85429.0,6.2e-07]
[1744497983513,1.20116493,85430.0,85429.0,0.00100062]
[1744497984051,1.21016493,85430.0,85429.0,0.00200062]
[1744497984231,1.09340239,85430.0,85429.0,0.00200062]
[1744497999201,1.04620239,85430.0,85429.0,0.00200062]
[1744497999406,1.03166154,85430.0,85429.0,0.00200062]
[1744498000839,1.04620239,85430.0,85429.0,0.00200062]
[1744498003982,1.16693087,85430.0,85429.0,0.00200062]
[1744498004415,1.04620239,85430.0,85429.0,0.00200062]
[1744498013055,1.04475792,85430.0,85429.0,0.00200062]
[1744498060219,1.04475792,85430.0,85429.0,0.05050062]
[1744498066448,1.04475792,85430.0,85429.0,0.00200062]
[1744498069145,1.03021707,85430.0,85429.0,0.04900062]
[1744498070072,1.03021707,85430.0,85429.0,0.09410062]
[1744498071224,1.04475792,85430.0,85429.0,0.00200062]
[1744498074881,1.1654864,85430.0,85429.0,6.2e-07]
[1744498075484,1.04475792,85430.0,85429.0,6.2e-07]
[1744498076067,2.24991792,85430.0,85429.0,6.2e-07]
[1744498089083,0.35454085,85420.0,85419.0,2e-07]
[1744498089281,0.47538239,85420.0,85419.0,2e-07]
[1744498089637,0.57335853,85420.0,85419.0,2e-07]
[1744498090637,0.57335853,85420.0,85391.0,0.00870903]
[1744498090638,0.01454085,85417.0,85408.0,4e-07]
[1744498090881,0.01454085,85404.0,85403.0,2e-07]
[1744498091121,0.61050239,85404.0,85403.0,2e-07]
[1744498091371,0.58435868,85404.0,85403.0,2e-07]
[1744498092199,0.59305965,85404.0,85403.0,2e-07]
[1744498092427,0.59305965,85404.0,85403.0,0.00046741]
[1744498093013,0.59705965,85404.0,85403.0,0.00046741]
[1744498093226,0.6116005,85404.0,85403.0,0.00046741]
[1744498094040,0.6166005,85404.0,85403.0,0.00146741]
[1744498095920,1.0301005,85404.0,85403.0,0.00146741]
[1744498097520,1.04194462,85404.0,85403.0,0.00146741]
[1744498098094,0.34,85402.0,85394.0,0.0462232]
[1744498098296,0.47538239,85402.0,85401.0,0.0029282]
[1744498099219,0.47938239,85402.0,85401.0,0.0029282]
[1744498099577,0.48538239,85402.0,85401.0,0.0039282]
[1744498101968,0.89888239,85402.0,85401.0,0.0039282]
[1744498103036,0.89888239,85402.0,85401.0,0.0494282]
[1744498105059,0.89888239,85402.0,85401.0,0.0039282]
[1744498105792,0.89888239,85402.0,85394.0,0.0004232]
[1744498105793,0.58872985,85401.0,85400.0,1e-06]
[1744498106005,0.70957139,85401.0,85400.0,0.00014055]
[1744498106166,0.70957139,85401.0,85400.0,5.5e-07]
[1744498106833,0.73142984,85401.0,85400.0,5.5e-07]
[1744498107181,0.73742984,85401.0,85400.0,5.5e-07]
[1744498107594,0.58873785,85398.0,85394.0,0.0004232]
[1744498107727,1.12307939,85398.0,85394.0,0.0004232]
[1744498107945,1.14493784,85398.0,85394.0,0.0004232]
[1744498109100,1.14893784,85398.0,85394.0,0.0004232]
[1744498109534,1.14893784,85398.0,85397.0,0.0014232]
[1744498109535,1.15593784,85398.0,85397.0,0.0014232]
[1744498112777,1.14139699,85398.0,85397.0,0.0014232]
[1744498113204,0.574203,85396.0,85394.0,0.0004232]
[1744498113355,0.69504454,85396.0,85394.0,0.0004232]
[1744498113754,0.71690299,85396.0,85394.0,0.0004232]
[1744498114430,0.85198299,85396.0,85394.0,0.0004232]
[1744498114632,0.85598299,85396.0,85394.0,0.0004232]
[1744498115502,0.86198299,85396.0,85395.0,0.0014231]
[1744498123869,0.84012454,85396.0,85395.0,0.0014231]
[1744498125663,0.86204295,85396.0,85395.0,0.0014231]
[1744498126889,0.8765838,85396.0,85395.0,0.0014231]
[1744498128281,0.8765838,85396.0,85395.0,0.00128989]
[1744498128792,2.0821838,85396.0,85395.0,0.00128989]
[1744498130277,2.20291228,85396.0,85395.0,0.00128989]
[1744498130651,2.0821838,85396.0,85395.0,0.00128989]
[1744498131254,2.4956838,85396.0,85395.0,0.00128989]
[1744498154836,2.4956838,85396.0,85395.0,0.04938989]
[1744498154837,2.48114295,85396.0,85395.0,0.04938989]
[1744498156899,2.45922454,85396.0,85395.0,0.04938989]
[1744498161730,2.45922454,85396.0,85395.0,0.00128989]
[1744498162227,0.35030801,85395.0,85394.0,0.0489232]
[1744498162422,0.47114955,85395.0,85394.0,0.0489232]
[1744498163482,0.47514955,85395.0,85394.0,0.0489232]
[1744498164530,0.48114955,85395.0,85394.0,0.0499232]
[1744498167383,0.61614955,85395.0,85394.0,0.0499232]
[1744498168817,0.34,85391.0,85390.0,6.3e-07]
[1744498169017,0.12084154,85391.0,85390.0,6.3e-07]
[1744498169448,0.13538239,85391.0,85390.0,6.3e-07]
[1744498170000,0.13838239,85391.0,85390.0,6.3e-07]
[1744498171672,0.14238239,85391.0,85390.0,6.3e-07]
[1744498172248,0.89588239,85391.0,85390.0,6.3e-07]
[1744498174260,0.89288239,85391.0,85390.0,6.3e-07]
[1744498174438,0.89688239,85391.0,85390.0,6.3e-07]
[1744498174837,0.89288239,85391.0,85390.0,6.3e-07]
[1744498175081,0.89988239,85391.0,85390.0,6.3e-07]
[1744498175281,0.01454085,85386.0,85384.0,8.3e-07]
[1744498175482,0.47538239,85385.0,85384.0,8.3e-07]
[1744498176873,0.48138239,85385.0,85384.0,8.3e-07]
[1744498177092,0.48738239,85385.0,85384.0,8.3e-07]
[1744498177691,0.011712,85378.0,85375.0,0.0459]
[1744498177838,0.011712,85378.0,85375.0,0.04594918]
[1744498177839,0.25576154,85377.0,85375.0,0.04594918]
[1744498178899,0.49001654,85377.0,85375.0,0.04594918]
[1744498179259,0.49501654,85377.0,85375.0,0.04594918]
[1744498180093,0.49901654,85377.0,85375.0,0.04594918]
[1744498182579,0.50798501,85377.0,85375.0,0.04594918]
[1744498184101,0.50540873,85377.0,85375.0,0.04594918]
[1744498193776,0.01030718,85376.0,85375.0,0.04594918]
[1744498193984,0.13114872,85376.0,85375.0,0.04594918]
[1744498194759,0.13114872,85376.0,85375.0,4.918e-05]
[1744498195338,0.13814872,85376.0,85375.0,4.918e-05]
[1744498195544,0.14214872,85376.0,85375.0,4.918e-05]
[1744498196368,0.48214872,85376.0,85375.0,4.918e-05]
[1744498198543,0.89564872,85376.0,85375.0,4.918e-05]
[1744498202264,0.91018957,85376.0,85375.0,1.8e-07]
[1744498202475,0.90618957,85376.0,85375.0,1.8e-07]
[1744498202648,0.89918957,85376.0,85375.0,1.8e-07]
[1744498202858,0.90418957,85376.0,85375.0,1.8e-07]
[1744498203398,0.89918957,85376.0,85375.0,1.8e-07]
[1744498203641,0.58880885,85372.0,85371.0,1.8e-07]
[1744498203843,0.70965039,85372.0,85371.0,1.8e-07]
[1744498204269,1.24387887,85372.0,85371.0,1.8e-07]
[1744498205075,0.35454085,85368.0,85366.0,6.8e-07]
[1744498205208,0.70966439,85367.0,85366.0,5.545e-05]
[1744498206663,0.71566439,85367.0,85366.0,5.545e-05]
[1744498206878,0.71566439,85367.0,85366.0,4.5e-07]
[1744498207388,1.12916439,85367.0,85366.0,4.5e-07]
[1744498207968,1.13816439,85367.0,85366.0,4.5e-07]
[1744498208137,1.13216439,85367.0,85366.0,4.5e-07]
[1744498208336,1.13916439,85367.0,85366.0,4.5e-07]
[1744498208559,1.27089287,85367.0,85366.0,4.5e-07]
[1744498208974,1.26389287,85367.0,85366.0,4.5e-07]
[1744498209394,0.34,85364.0,85360.0,0.0004233]
[1744498209593,0.46084154,85363.0,85360.0,0.0004233]
[1744498209827,0.69513454,85363.0,85360.0,0.0004233]
[1744498212276,0.70513454,85363.0,85360.0,0.0004233]
[1744498212621,0.71113454,85363.0,85360.0,0.0004233]
[1744498213402,1.12463454,85363.0,85360.0,0.0004233]
[1744498216560,1.13917539,85363.0,85360.0,0.0004233]
[1744498216949,1.27405539,85363.0,85360.0,0.0004233]
[1744498222314,1.13917539,85363.0,85360.0,0.0004233]
[1744498222544,1.27405539,85363.0,85360.0,0.0004233]
[1744498224732,1.13917539,85363.0,85360.0,0.0004233]
[1744498224989,1.27405539,85363.0,85360.0,0.0004233]
[1744498225431,0.58883985,85361.0,85360.0,0.0004233]
[1744498225658,0.70968139,85361.0,85360.0,0.0004233]
[1744498227493,0.72468139,85361.0,85360.0,0.0004233]
[1744498227741,0.71014054,85361.0,85360.0,0.0491233]
[1744498229972,0.71014054,85361.0,85360.0,0.0990233]
[1744498232856,0.72189707,85361.0,85360.0,0.0990233]
[1744498233387,0.38189707,85361.0,85360.0,0.0990233]
[1744498233597,0.384179,85361.0,85360.0,0.0990233]
[1744498234439,0.378179,85361.0,85360.0,0.0990233]
[1744498234871,0.373179,85361.0,85360.0,0.0990233]
[1744498235089,0.49902054,85361.0,85360.0,0.0990233]
[1744498241526,0.49902054,85361.0,85360.0,0.08913987]
[1744498246754,0.49890054,85361.0,85360.0,0.08913987]
[1744498257695,0.36414054,85361.0,85360.0,0.08913987]
[1744498257905,0.49890054,85361.0,85360.0,0.08913987]
[1744498262530,0.49890054,85361.0,85359.0,0.0004233]
[1744498262768,0.13538239,85360.0,85359.0,0.0004233]
[1744498262992,0.88888239,85360.0,85359.0,0.0004233]
[1744498264326,0.89588239,85360.0,85359.0,0.0004233]
[1744498265866,0.90088239,85360.0,85359.0,0.0004233]
[1744498272587,1.03556239,85360.0,85359.0,0.0004233]
[1744498287625,1.10885767,85360.0,85359.0,0.0004233]
[1744498287833,1.03556239,85360.0,85359.0,0.0004233]
[1744498302593,1.03556239,85360.0,85359.0,3e-07]
[1744498303800,0.58884485,85359.0,85357.0,3e-07]
[1744498304000,0.60998239,85358.0,85357.0,3e-07]
[1744498304337,0.58885085,85357.0,85355.0,4e-07]
[1744498304551,0.88888239,85356.0,85355.0,4e-07]
[1744498305795,0.90388239,85356.0,85355.0,4e-07]
[1744498307853,0.88934154,85356.0,85355.0,0.0474004]
[1744498309661,0.90388239,85356.0,85355.0,4e-07]
[1744498309927,0.98244633,85356.0,85355.0,4e-07]
[1744498310582,0.01454085,85345.0,85343.0,4e-07]
[1744498310802,0.13538239,85344.0,85343.0,0.00014068]
[1744498312447,0.14138239,85344.0,85343.0,0.00014068]
[1744498313035,0.234364,85337.0,85336.0,0.04247349]
[1744498313239,0.48984554,85337.0,85336.0,0.04252819]
[1744498314686,0.49184554,85337.0,85336.0,0.04252819]
[1744498314888,0.50061899,85337.0,85336.0,0.04252819]
[1744498315618,0.50361899,85337.0,85336.0,0.04252819]
[1744498316254,0.50361899,85337.0,85336.0,5.47e-05]
[1744498317861,0.51815984,85337.0,85336.0,5.47e-05]
[1744498322847,0.50361899,85337.0,85336.0,5.47e-05]
[1744498323048,0.50361899,85337.0,85336.0,0.0478547]
[1744498328979,0.50361899,85337.0,85336.0,0.0368547]
[1744498331378,0.36897899,85337.0,85336.0,0.0368547]
[1744498331562,0.50349899,85337.0,85336.0,0.0368547]
[1744498334583,0.50349899,85337.0,85331.0,0.0004232]
[1744498334584,0.234373,85334.0,85331.0,0.0004232]
[1744498334802,0.35521454,85334.0,85331.0,0.0004232]
[1744498335780,0.35721454,85334.0,85331.0,0.0004232]
[1744498335974,0.36895617,85334.0,85331.0,0.0004232]
[1744498336224,0.37095617,85334.0,85331.0,0.0004232]
[1744498341466,0.50547617,85334.0,85331.0,0.0004232]
[1744498345291,0.93351702,85334.0,85331.0,0.0004232]
[1744498346695,0.93151702,85334.0,85331.0,0.0004232]
[1744498347125,0.93251702,85334.0,85331.0,0.0004232]
[1744498347357,0.93651702,85334.0,85331.0,0.0004232]
[1744498348614,0.58891885,85332.0,85331.0,4e-07]
[1744498348823,0.70976039,85332.0,85331.0,4e-07]
[1744498349874,0.71276039,85332.0,85331.0,4e-07]
[1744498350373,0.71676039,85332.0,85331.0,4e-07]
[1744498351076,1.13026039,85332.0,85331.0,4e-07]
[1744498355766,1.25098887,85332.0,85331.0,4e-07]
[1744498355962,0.02625985,85327.0,85324.0,2e-07]
[1744498356187,0.35454085,85325.0,85324.0,2e-07]
[1744498356370,0.47538239,85325.0,85324.0,2e-07]
[1744498356937,0.88888239,85325.0,85324.0,2e-07]
[1744498357344,0.89588239,85325.0,85324.0,2e-07]
[1744498358377,0.90088239,85325.0,85324.0,2e-07]
[1744498360562,0.88634154,85325.0,85324.0,2e-07]
[1744498361461,0.88634154,85325.0,85324.0,0.0456002]
[1744498363363,1.02082154,85325.0,85324.0,0.0456002]
[1744498364375,1.02082154,85325.0,85324.0,2e-07]
[1744498374310,1.03536239,85325.0,85324.0,2e-07]
[1744498374530,1.15609087,85325.0,85324.0,2e-07]
[1744498375384,1.03536239,85325.0,85324.0,2e-07]
[1744498378254,0.58894885,85321.0,85320.0,5e-07]
[1744498378463,0.70979039,85321.0,85320.0,5e-07]
[1744498379533,0.71579039,85321.0,85320.0,5e-07]
[1744498379758,0.70979039,85321.0,85320.0,5e-07]
[1744498379942,0.71379039,85321.0,85320.0,5e-07]
[1744498380143,0.72079039,85321.0,85320.0,5e-07]
[1744498380340,0.71679039,85321.0,85320.0,5e-07]
[1744498380669,0.72179039,85321.0,85320.0,5e-07]
[1744498383228,1.92843039,85321.0,85320.0,5e-07]
[1744498383449,2.34193039,85321.0,85320.0,5e-07]
[1744498384883,2.36828441,85321.0,85320.0,5e-07]
[1744498385100,2.34193039,85321.0,85320.0,5e-07]
[1744498385765,2.47641039,85321.0,85320.0,5e-07]
[1744498386653,2.46186954,85321.0,85320.0,5e-07]
[1744498387404,2.32738954,85321.0,85320.0,5e-07]
[1744498387562,2.46186954,85321.0,85320.0,5e-07]
[1744498395079,1.98738954,85321.0,85320.0,5e-07]
[1744498395285,2.12182954,85321.0,85320.0,0.0495005]
[1744498397631,0.91518954,85321.0,85320.0,0.0495005]
[1744498400727,0.91518954,85321.0,85320.0,5e-07]
[1744498402165,0.91514954,85321.0,85320.0,5e-07]
[1744498402371,0.78074954,85321.0,85320.0,5e-07]
[1744498402571,0.91514954,85321.0,85320.0,5e-07]
[1744498423259,0.91510954,85321.0,85320.0,5e-07]
[1744498433913,0.78074954,85321.0,85320.0,5e-07]
[1744498434087,0.91510954,85321.0,85320.0,5e-07]
[1744498443164,0.4255,85321.0,85320.0,0.3283115]
[1744498443340,0.4255,85321.0,85320.0,0.0939005]
[1744498443656,0.659908,85321.0,85320.0,0.11017729]
[1744498444237,0.654908,85321.0,85320.0,0.11017729]
[1744498444470,0.654908,85321.0,85320.0,0.1138388]
[1744498444651,0.647908,85321.0,85320.0,0.1138388]
[1744498444831,0.650908,85321.0,85320.0,0.1138388]
[1744498445517,0.653908,85321.0,85320.0,0.1138388]
[1744498446202,0.653908,85321.0,85320.0,0.09756201]
[1744498447374,0.653908,85321.0,85320.0,0.11382813]
[1744498447795,0.240408,85321.0,85320.0,0.11382813]
[1744498449199,0.240408,85321.0,85320.0,0.09756201]
[1744498449415,0.240408,85321.0,85320.0,0.11382813]
[1744498450372,0.006,85321.0,85320.0,0.11617202]
[1744498450597,0.006,85321.0,85320.0,0.0999059]
[1744498450843,0.006,85321.0,85320.0,0.11377355]
[1744498451281,0.003,85321.0,85320.0,0.11377355]
[1744498451504,0.004,85321.0,85320.0,0.11377355]
[1744498452020,0.001,85321.0,85320.0,0.11377355]
[1744498455887,0.235408,85321.0,85320.0,0.11377355]
[1744498456199,0.235408,85321.0,85320.0,0.09756201]
[1744498457081,0.235408,85321.0,85320.0,0.0939005]
[1744498457472,0.235408,85321.0,85320.0,0.0475005]
[1744498457631,0.234408,85321.0,85320.0,0.0475005]
[1744498458046,0.235408,85321.0,85320.0,0.0475005]
[1744498458449,0.001,85321.0,85320.0,0.06370918]
[1744498468302,0.001,85321.0,85320.0,0.06737056]